fUSD/lending_fUSD_20240319
["ID","MTS","AMOUNT","RATE_DAILY","PERIOD"]
[319591068,1710883915776,-2131.2,0.0003178,2]
[319591069,1710883915785,-2323.6,0.0003178,2]
[319591070,1710883915797,-1029.83,0.0003178,2]
[319591071,1710883915807,-1002.08,0.0003178,2]
[319591072,1710883915816,-920.9,0.0003178,2]
[319591073,1710883915825,-500.0,0.0003178,2]
[319591074,1710883915835,-500.0,0.0003178,2]
[319591075,1710883915844,-500.0,0.0003178,2]
[319591076,1710883915853,-500.0,0.0003178,2]
[319591077,1710883915862,-911.98,0.0003178,2]
[319591078,1710883915871,-500.0,0.0003178,2]
[319591079,1710883915880,-1678.98,0.0003178,2]
[319591080,1710883915890,-500.0,0.0003178,2]
[319591081,1710883915899,-1863.56,0.0003178,2]
[319591082,1710883915909,-1128.71,0.0003178,2]
[319591083,1710883915919,-500.0,0.0003178,2]
[319591084,1710883915928,-2681.45,0.0003178,2]
[319591085,1710883915938,-1339.78,0.0003178,2]
[319591086,1710883915948,-500.0,0.0003178,2]
[319591087,1710883915957,-1106.22,0.0003178,2]
[319591088,1710883915967,-1300.16,0.0003178,2]
[319591089,1710883915977,-992.6,0.0003178,2]
[319591090,1710883915986,-1592.35,0.0003178,2]
[319591091,1710883915996,-819.23,0.0003178,2]
[319591092,1710883916006,-1472.83,0.0003178,2]
[319591093,1710883916015,-1693.58,0.0003178,2]
[319591094,1710883916025,-920.2,0.0003178,2]
[319591095,1710883916035,-3015.74,0.0003178,2]
[319591096,1710883916045,-1479.36,0.0003178,2]
[319591097,1710883916055,-1476.3,0.0003178,2]
[319591098,1710883916064,-1044.17,0.0003178,2]
[319591099,1710883916074,-730.68,0.0003178,2]
[319591100,1710883916084,-500.0,0.0003178,2]
[319591101,1710883916093,-578.08,0.0003178,2]
[319591102,1710883916102,-500.0,0.0003178,2]
[319591103,1710883916111,-595.68,0.0003178,2]
[319591104,1710883916120,-3228.34,0.0003178,2]
[319591105,1710883916132,-1788.05,0.0003178,2]
[319591106,1710883916141,-500.0,0.0003178,2]
[319591107,1710883916150,-4601.24,0.0003178,2]
[319591108,1710883916159,-3085.88,0.0003178,2]
[319591109,1710883916169,-500.0,0.0003178,2]
[319591110,1710883916178,-500.0,0.0003178,2]
[319591111,1710883916187,-599.74,0.0003178,2]
[319591112,1710883916197,-1358.55,0.0003178,2]
[319591113,1710883916211,-670.46,0.0003178,2]
[319591114,1710883916221,-500.0,0.0003178,2]
[319591115,1710883916231,-642.15,0.0003178,2]
[319591116,1710883916240,-566.16,0.0003178,2]
[319591117,1710883916249,-721.15,0.0003178,2]
[319591118,1710883916258,-2938.58,0.0003178,2]
[319591119,1710883916267,-500.0,0.0003178,2]
[319591120,1710883916276,-4752.16,0.0003178,2]
[319591121,1710883916285,-500.0,0.0003178,2]
[319591122,1710883916296,-3009.86,0.0003178,2]
[319591123,1710883916305,-1617.93,0.0003178,2]
[319591124,1710883916314,-998.08,0.0003178,2]
[319591125,1710883916323,-1489.28,0.0003178,2]
[319591126,1710883916332,-619.52,0.0003178,2]
[319591127,1710883916341,-667.9,0.0003178,2]
[319591128,1710883916350,-3181.49,0.0003178,2]
[319591129,1710883916359,-771.66,0.0003178,2]
[319591130,1710883916368,-500.0,0.0003178,2]
[319591131,1710883916378,-917.14,0.0003178,2]
[319591132,1710883916387,-536.82,0.0003178,2]
[319591133,1710883916396,-1132.34,0.0003178,2]
[319591134,1710883916405,-1991.15,0.0003178,2]
[319591135,1710883916414,-4279.74,0.0003178,2]
[319591136,1710883916423,-612.08,0.0003178,2]
[319591137,1710883916432,-1110.06,0.0003178,2]
[319591138,1710883916442,-500.0,0.0003178,2]
[319591139,1710883916451,-1665.19,0.0003178,2]
[319591140,1710883916460,-500.0,0.0003178,2]
[319591141,1710883916469,-1045.55,0.0003178,2]
[319591142,1710883916478,-500.0,0.0003178,2]
[319591143,1710883916487,-1094.52,0.0003178,2]
[319591144,1710883916496,-500.0,0.0003178,2]
[319591145,1710883916505,-532.26,0.0003178,2]
[319591146,1710883916514,-500.0,0.0003178,2]
[319591147,1710883916523,-1786.87,0.0003178,2]
[319591148,1710883916532,-502.72,0.0003178,2]
[319591149,1710883916542,-500.0,0.0003178,2]
[319591150,1710883916553,-806.79,0.0003178,2]
[319591151,1710883916562,-748.95,0.0003178,2]
[319591152,1710883916571,-500.0,0.0003178,2]
[319591153,1710883916581,-500.0,0.0003178,2]
[319591154,1710883916589,-593.79,0.0003178,2]
[319591155,1710883916598,-500.0,0.0003178,2]
[319591156,1710883916607,-8856.3,0.0003178,2]
[319591157,1710883916617,-760.65,0.0003178,2]
[319591158,1710883916626,-554.19,0.0003178,2]
[319591159,1710883916635,-500.0,0.0003178,2]
[319591160,1710883916645,-1106.69,0.0003178,2]
[319591161,1710883916654,-500.0,0.0003178,2]
[319591162,1710883916663,-2327.89,0.0003178,2]
[319591163,1710883916672,-601.9,0.0003178,2]
[319591164,1710883916682,-500.0,0.0003178,2]
[319591165,1710883916691,-500.0,0.0003178,2]
[319591166,1710883916700,-4503.28,0.0003178,2]
[319591167,1710883916711,-683.59,0.0003178,2]
[319591168,1710883916721,-1341.14,0.0003178,2]
[319591169,1710883916730,-3065.68,0.0003178,2]
[319591170,1710883916738,-500.0,0.0003178,2]
[319591171,1710883916747,-1146.77,0.0003178,2]
[319591172,1710883916757,-70475.11,0.0003178,2]
[319591173,1710883916766,-1391.85,0.0003178,2]
[319591174,1710883916775,-923.46,0.0003178,2]
[319591175,1710883916784,-996.04,0.0003178,2]
[319591176,1710883916795,-500.0,0.0003178,2]
[319591177,1710883916804,-3598.57,0.0003178,2]
[319591178,1710883916813,-500.0,0.0003178,2]
[319591179,1710883916822,-671.83,0.0003178,2]
[319591180,1710883916831,-2497.58,0.0003178,2]
[319591181,1710883916840,-1473.31,0.0003178,2]
[319591182,1710883916850,-1107.93,0.0003178,2]
[319591183,1710883916859,-503.54,0.0003178,2]
[319591184,1710883916868,-500.0,0.0003178,2]
[319591185,1710883916879,-500.04,0.0003178,2]
[319591186,1710883916887,-743.86,0.0003178,2]
[319591187,1710883916896,-1175.56,0.0003178,2]
[319591188,1710883916906,-2560.04,0.0003178,2]
[319591189,1710883916914,-14154.91,0.0003178,2]
[319591190,1710883916924,-5898.84,0.0003178,2]
[319591191,1710883916932,-500.0,0.0003178,2]
[319591192,1710883916942,-500.0,0.0003178,2]
[319591193,1710883916951,-369.49724475,0.0003178,2]
[319591194,1710883916960,-500.0,0.0003178,2]
[319591195,1710883916970,-500.0,0.0003178,2]
[319591196,1710883916979,-2689.21,0.0003178,2]
[319591197,1710883916988,-595.84,0.0003178,2]
[319591198,1710883916997,-500.0,0.0003178,2]
[319591199,1710883917007,-1267.16,0.0003178,2]
[319591200,1710883917016,-500.0,0.0003178,2]
[319591201,1710883917025,-2980.98,0.0003178,2]
[319591202,1710883917034,-3065.32,0.0003178,2]
[319591203,1710883917044,-500.0,0.0003178,2]
[319591204,1710883917053,-373.68843028,0.0003178,2]
[319591205,1710883917062,-3801.0,0.0003178,2]
[319591206,1710883917072,-4556.68,0.0003178,2]
[319591207,1710883917081,-2891.72,0.0003178,2]
[319591208,1710883917090,-725.51,0.0003178,2]
[319591209,1710883917100,-47375.69,0.0003178,2]
[319591210,1710883917109,-2490.42,0.0003178,2]
[319591211,1710883917119,-500.0,0.0003178,2]
[319591212,1710883917132,-500.0,0.0003178,2]
[319591213,1710883917142,-500.0,0.0003178,2]
[319591214,1710883917151,-20389.23,0.0003178,2]
[319591215,1710883917161,-4147.4,0.0003178,2]
[319591216,1710883917171,-500.0,0.0003178,2]
[319591217,1710883917181,-500.0,0.0003178,2]
[319591218,1710883917190,-3211.93,0.0003178,2]
[319591219,1710883917199,-500.0,0.0003178,2]
[319591220,1710883917212,-2314.74,0.0003178,2]
[319591221,1710883917223,-1600.3,0.0003178,2]
[319591222,1710883917233,-1945.58,0.0003178,2]
[319591223,1710883917243,-500.0,0.0003178,2]
[319591224,1710883917252,-1483.68,0.0003178,2]
[319591225,1710883917261,-559.95,0.0003178,2]
[319591226,1710883917271,-663.81,0.0003178,2]
[319591227,1710883917281,-500.0,0.0003178,2]
[319591228,1710883917290,-500.0,0.0003178,2]
[319591229,1710883917302,-10570.94,0.0003178,2]
[319591230,1710883917312,-10886.69,0.0003178,2]
[319591231,1710883917321,-3865.29,0.0003178,2]
[319591232,1710883917330,-2185.36,0.0003178,2]
[319591233,1710883917339,-2752.16,0.0003178,2]
[319591234,1710883917349,-500.0,0.0003178,2]
[319591235,1710883917358,-500.0,0.0003178,2]
[319591236,1710883917368,-500.0,0.0003178,2]
[319591237,1710883917378,-500.0,0.0003178,2]
[319591238,1710883917387,-4043.67,0.0003178,2]
[319591239,1710883917397,-1097.94,0.0003178,2]
[319591240,1710883917407,-606.69,0.0003178,2]
[319591241,1710883917416,-7939.41,0.0003178,2]
[319591242,1710883917426,-2749.39,0.0003178,2]
[319591243,1710883917435,-2790.61,0.0003178,2]
[319591244,1710883917445,-1059.8,0.0003178,2]
[319591245,1710883917454,-1280.77,0.0003178,2]
[319591246,1710883917463,-877.7,0.0003178,2]
[319591247,1710883917473,-3601.4,0.0003178,2]
[319591248,1710883917482,-1476.18,0.0003178,2]
[319591249,1710883917491,-4740.7,0.0003178,2]
[319591250,1710883917501,-500.0,0.0003178,2]
[319591251,1710883917511,-500.0,0.0003178,2]
[319591252,1710883917520,-891.26,0.0003178,2]
[319591253,1710883917529,-500.0,0.0003178,2]
[319591254,1710883917539,-500.0,0.0003178,2]
[319591255,1710883917549,-1559.83,0.0003178,2]
[319591256,1710883917558,-500.0,0.0003178,2]
[319591257,1710883917567,-5079.64,0.0003178,2]
[319591258,1710883917576,-1577.2,0.0003178,2]
[319591259,1710883917587,-500.0,0.0003178,2]
[319591260,1710883917596,-4218.37,0.0003178,2]
[319591261,1710883917606,-9828.36,0.0003178,2]
[319591262,1710883917616,-500.0,0.0003178,2]
[319591263,1710883917625,-5493.68,0.0003178,2]
[319591264,1710883917635,-500.0,0.0003178,2]
[319591265,1710883917645,-500.0,0.0003178,2]
[319591266,1710883917654,-5160.57,0.0003178,2]
[319591267,1710883917665,-500.0,0.0003178,2]
[319591268,1710883917674,-4906.24,0.0003178,2]
[319591269,1710883917684,-2531.37,0.0003178,2]
[319591270,1710883917694,-4165.31,0.0003178,2]
[319591271,1710883917703,-5275.57,0.0003178,2]
[319591272,1710883917713,-500.0,0.0003178,2]
[319591273,1710883917723,-500.0,0.0003178,2]
[319591274,1710883917733,-1056.79,0.0003178,2]
[319591275,1710883917742,-500.0,0.0003178,2]
[319591276,1710883917752,-463.51728121,0.0003178,2]
[319591277,1710883917763,-4839.55,0.0003178,2]
[319591278,1710883917772,-500.0,0.0003178,2]
[319591279,1710883917782,-500.0,0.0003178,2]
[319591280,1710883917791,-7419.89,0.0003178,2]
[319591281,1710883917803,-1194.33,0.0003178,2]
[319591282,1710883917813,-4229.15,0.0003178,2]
[319591283,1710883917823,-3245.57,0.0003178,2]
[319591284,1710883917833,-500.0,0.0003178,2]
[319591285,1710883917843,-500.0,0.0003178,2]
[319591286,1710883917854,-4377.03,0.0003178,2]
[319591287,1710883917863,-2111.4,0.0003178,2]
[319591288,1710883917873,-651.65,0.0003178,2]
[319591289,1710883917882,-8031.56,0.0003178,2]
[319591290,1710883917892,-500.0,0.0003178,2]
[319591291,1710883917901,-500.0,0.0003178,2]
[319591292,1710883917911,-1423.31,0.0003178,2]
[319591293,1710883917920,-5259.72,0.0003178,2]
[319591294,1710883917929,-1204.58,0.0003178,2]
[319591295,1710883917939,-2930.26,0.0003178,2]
[319591296,1710883917948,-500.0,0.0003178,2]
[319591297,1710883917957,-11130.16,0.0003178,2]
[319591298,1710883917967,-832.52,0.0003178,2]
[319591299,1710883917978,-9249.81,0.0003178,2]
[319591300,1710883917988,-5684.8,0.0003178,2]
[319591301,1710883917998,-500.0,0.0003178,2]
[319591302,1710883918008,-500.0,0.0003178,2]
[319591303,1710883918018,-3804.28,0.0003178,2]
[319591304,1710883918027,-8973.34,0.0003178,2]
[319591305,1710883918037,-500.0,0.0003178,2]
[319591306,1710883918050,-1414.18,0.0003178,2]
[319591307,1710883918060,-3168.58,0.0003178,2]
[319591308,1710883918070,-8338.3,0.0003178,2]
[319591309,1710883918079,-4033.8,0.0003178,2]
[319591310,1710883918090,-3441.43,0.0003178,2]
[319591311,1710883918099,-500.0,0.0003178,2]
[319591312,1710883918109,-500.0,0.0003178,2]
[319591313,1710883918120,-7232.08,0.0003178,2]
[319591314,1710883918130,-10350.75,0.0003178,2]
[319591315,1710883918140,-500.0,0.0003178,2]
[319591316,1710883918152,-3837.76,0.0003178,2]
[319591317,1710883918162,-4633.1,0.0003178,2]
[319591318,1710883918172,-560.13570009,0.0003178,2]
[319591319,1710883918182,-12146.42,0.0003178,2]
[319591320,1710883918191,-960.52,0.0003178,2]
[319591321,1710883918201,-10482.14,0.0003178,2]
[319591322,1710883918212,-1420.4,0.0003178,2]
[319591323,1710883918222,-607.22543778,0.0003178,2]
[319591324,1710883918232,-4285.4,0.0003178,2]
[319591325,1710883918242,-500.0,0.0003178,2]
[319591326,1710883918251,-500.0,0.0003178,2]
[319591327,1710883918261,-1293.02,0.0003178,2]
[319591328,1710883918271,-4258.27,0.0003178,2]
[319591329,1710883918280,-13155.35,0.0003178,2]
[319591330,1710883918290,-2338.93,0.0003178,2]
[319591331,1710883918302,-569.11,0.0003178,2]
[319591332,1710883918313,-753.19,0.0003178,2]
[319591333,1710883918322,-11295.13,0.0003178,2]
[319591334,1710883918331,-2434.72,0.0003178,2]
[319591335,1710883918340,-500.0,0.0003178,2]
[319591336,1710883918350,-5511.71,0.0003178,2]
[319591337,1710883918359,-686.32,0.0003178,2]
[319591338,1710883918368,-3459.87,0.0003178,2]
[319591339,1710883918378,-2290.53,0.0003178,2]
[319591340,1710883918387,-3981.65,0.0003178,2]
[319591341,1710883918396,-22669.64,0.0003178,2]
[319591342,1710883918405,-1344.41,0.0003178,2]
[319591343,1710883918414,-500.0,0.0003178,2]
[319591344,1710883918423,-9329.88,0.0003178,2]
[319591345,1710883918433,-16782.69,0.0003178,2]
[319591346,1710883918442,-6850.67,0.0003178,2]
[319591347,1710883918452,-500.0,0.0003178,2]
[319591348,1710883918461,-500.0,0.0003178,2]
[319591349,1710883918470,-9425.82,0.0003178,2]
[319591350,1710883918480,-500.0,0.0003178,2]
[319591351,1710883918489,-7313.78,0.0003178,2]
[319591352,1710883918498,-3365.03,0.0003178,2]
[319591353,1710883918506,-6200.56,0.0003178,2]
[319591354,1710883918515,-500.0,0.0003178,2]
[319591355,1710883918525,-4563.38,0.0003178,2]
[319591356,1710883918534,-864.79,0.0003178,2]
[319591357,1710883918544,-500.0,0.0003178,2]
[319591358,1710883918555,-500.0,0.0003178,2]
[319591359,1710883918564,-2680.0,0.0003178,2]
[319591360,1710883918573,-3800.13,0.0003178,2]
[319591361,1710883918583,-9598.64,0.0003178,2]
[319591362,1710883918594,-10097.33,0.0003178,2]
[319591363,1710883918818,-8797.6,0.0003178,2]
[319591364,1710883918828,-7590.43,0.0003178,2]
[319591365,1710883918838,-542.95,0.0003178,2]
[319591366,1710883918848,-563.84,0.0003178,2]
[319591367,1710883918857,-500.0,0.0003178,2]
[319591368,1710883918866,-1046.81,0.0003178,2]
[319591369,1710883918876,-535.47,0.0003178,2]
[319591370,1710883918885,-8014.33,0.0003178,2]
[319591371,1710883918895,-520.47,0.0003178,2]
[319591372,1710883918904,-1416.49,0.0003178,2]
[319591373,1710883918914,-21616.58591799,0.0003178,2]
[319591374,1710883919643,-4985.25209335,0.0003178,2]
[319591375,1710883919654,-2310.85616531,0.0003178,2]
[319591376,1710883919665,-4255.42921109,0.0003178,2]
[319591377,1710883919694,-15309.47661226,0.0003178,2]
[319591378,1710883919703,-2120.52338767,0.0003178,2]
[319591379,1710883920413,-603.0,0.0002965,2]
[319591380,1710883920422,-92.263435,0.0002965,2]
[319591381,1710883920779,-118.16108974,0.0002965,2]
[319591382,1710883920857,-1053.57547526,0.0002965,2]
[319591383,1710883920866,-500.0,0.00030133,2]
[319591384,1710883920875,-500.0,0.00030133,2]
[319591385,1710883920884,-4038.60785489,0.00030136,2]
[319591386,1710883920896,-456.80005735,0.00030136,2]
[319591387,1710883927142,2361.73,0.0001863,2]
[319591388,1710883930226,200.80824684,0.00018629,2]
[319591389,1710883933761,155.0,0.00018628,2]
[319591390,1710883939702,158.04643056,0.00018627,2]
[319591391,1710883939760,155.0,0.00018627,2]
[319591393,1710883941429,155.0,0.00018626,2]
[319591394,1710883942695,2922.82399565,0.00018626,2]
[319591412,1710884165110,2361.73,0.0001863,2]
[319591440,1710885031875,-288.2029564,0.00026382,2]
[319591441,1710885031884,-424.10430501,0.00026481,2]
[319591442,1710885031895,-82.17755543,0.00026481,2]
[319591443,1710885031904,-542.46498257,0.00026482,4]
[319591444,1710885031936,-543.59388197,0.00026482,4]
[319591445,1710885031947,-1311.37471456,0.00026482,4]
[319591446,1710885031963,-102.5664209,0.00026482,4]
[319591447,1710885031972,-300.0,0.0002652,2]
[319591448,1710885031982,-81.64787733,0.00026521,5]
[319591449,1710885031994,-1418.23047102,0.00026521,5]
[319591451,1710885032013,-345.3,0.00026521,5]
[319591484,1710885037556,-516.81970611,0.00026521,5]
[319591485,1710885037569,-1258.28539142,0.00026521,5]
[319591486,1710885037580,-474.18539576,0.00026521,5]
[319591487,1710885037594,-10192.24489615,0.00026521,5]
[319591488,1710885037603,-150.0,0.00028007,2]
[319591489,1710885037613,-4191.01,0.00028176,2]
[319591490,1710885037622,-1134.05,0.0002818,2]
[319591491,1710885037632,-250.0,0.00028191,2]
[319591492,1710885037641,-1000.0,0.000282,2]
[319591493,1710885037651,-354.42,0.000282,2]
[319591494,1710885037661,-41623.31764684,0.00028201,2]
[319591495,1710885037699,-329.00483584,0.00028201,2]
[319591496,1710885037711,-641.54,0.00028201,2]
[319591497,1710885037733,-12406.13751732,0.00028201,2]
[319591498,1710885037743,-250.0,0.00028203,2]
[319591499,1710885037754,-500.0,0.00028211,2]
[319591500,1710885037764,-1000.0,0.00028213,2]
[319591501,1710885037778,-250.0,0.00028257,2]
[319591502,1710885037789,-10968.73,0.00028301,2]
[319591503,1710885037800,-449.49604415,0.00028326,2]
[319591504,1710885037811,-150.0,0.00028411,2]
[319591505,1710885037821,-169.14,0.00028427,2]
[319591506,1710885037831,-387.98,0.0002848,2]
[319591507,1710885037842,-2500.0,0.00028485,4]
[319591508,1710885037852,-266.38,0.00028583,120]
[319591509,1710885037862,-9526.11,0.00028585,2]
[319591510,1710885037872,-2041.0,0.000288,2]
[319591511,1710885037882,-1465.79299595,0.00028887,2]
[319591512,1710885037892,-254.2358,0.00028932,2]
[319591513,1710885037902,-6580.0,0.00028948,2]
[319591514,1710885037912,-183.81,0.00029111,120]
[319591515,1710885037922,-480.0,0.00029172,2]
[319591517,1710885037932,-155.31859342,0.00029529,2]
[319591519,1710885037942,-190.63,0.00029559,2]
[319591520,1710885037952,-2561.0,0.00029835,2]
[319591522,1710885037962,-1379.0,0.00029835,2]
[319591523,1710885037972,-959.0,0.00029835,2]
[319591524,1710885037982,-457.0,0.00029835,2]
[319591525,1710885037995,-536.0,0.00029835,2]
[319591526,1710885038005,-1226.0,0.00029835,2]
[319591527,1710885038015,-278.0,0.00029835,2]
[319591528,1710885038025,-603.0,0.00029835,2]
[319591529,1710885038039,-1250.0,0.00029835,2]
[319591530,1710885038051,-1264.0,0.00029835,2]
[319591531,1710885038062,-432.044,0.00029835,2]
[319591532,1710885038073,-801.0,0.00029835,2]
[319591533,1710885038084,-1136.0,0.00029835,2]
[319591534,1710885038095,-3000.0,0.00029835,2]
[319591535,1710885038107,-150.0,0.00029835,2]
[319591536,1710885038118,-357.0,0.00029835,2]
[319591537,1710885038134,-2419.0,0.00029835,2]
[319591538,1710885038146,-150.0,0.00029835,2]
[319591539,1710885038160,-1459.0,0.00029835,2]
[319591540,1710885038171,-1623.0,0.00029835,2]
[319591541,1710885038183,-213.0,0.00029835,2]
[319591542,1710885038194,-42890.0,0.00029835,2]
[319591543,1710885038205,-2445.0,0.00029835,2]
[319591544,1710885038220,-5670.0,0.00029835,2]
[319591545,1710885038232,-4763.0,0.00029835,2]
[319591546,1710885038243,-1044.0,0.00029835,2]
[319591547,1710885038255,-150.0,0.00029835,2]
[319591548,1710885038268,-150.0,0.00029835,2]
[319591549,1710885038279,-1000.0,0.000299,2]
[319591550,1710885038293,-165.75,0.00029924,2]
[319591551,1710885038305,-500.0,0.00029936,2]
[319591552,1710885038316,-1000.0,0.00029936,2]
[319591553,1710885038327,-6348.9173,0.00029936,2]
[319591554,1710885038340,-10521.5905,0.00029936,2]
[319591555,1710885038352,-2500.0,0.00029936,2]
[319591556,1710885038364,-1029.24655996,0.00029936,2]
[319591557,1710885038375,-321.69071645,0.00029936,2]
[319591558,1710885038387,-603.57569566,0.00029989,2]
[319591559,1710885038399,-14171.98044499,0.0003,4]
[319591560,1710885038420,-983.9989908,0.0003,4]
[319591561,1710885038437,-719.45,0.0003,4]
[319591562,1710885038493,-1632.22125844,0.0003,4]
[319591563,1710885038508,-1747.69224836,0.0003,4]
[319591564,1710885038520,-1684.6658,0.00030034,2]
[319591565,1710885038532,-177.48552002,0.00030034,4]
[319591566,1710885038547,-63038.7912,0.00030036,2]
[319591567,1710885038557,-10000.0,0.00030036,2]
[319591568,1710885038568,-212.0,0.00030036,2]
[319591569,1710885038578,-300.0,0.00030036,2]
[319591570,1710885038590,-1000.0,0.00030036,2]
[319591571,1710885038601,-7500.0,0.00030036,2]
[319591572,1710885038613,-151.032006,0.00030123,4]
[319591573,1710885038625,-151.032006,0.00030123,3]
[319591574,1710885038639,-151.032006,0.00030124,3]
[319591575,1710885038650,-151.032006,0.00030124,4]
[319591576,1710885038661,-151.032006,0.00030125,4]
[319591577,1710885038672,-151.032006,0.00030125,3]
[319591578,1710885038686,-151.032006,0.00030126,3]
[319591579,1710885038697,-151.032006,0.00030126,4]
[319591580,1710885038707,-222.032006,0.00030127,4]
[319591581,1710885038717,-222.032006,0.00030127,3]
[319591582,1710885038726,-222.032006,0.00030128,3]
[319591583,1710885038736,-222.032006,0.00030128,4]
[319591584,1710885038747,-222.032006,0.00030129,4]
[319591585,1710885038757,-222.032006,0.00030129,3]
[319591586,1710885038767,-222.032006,0.0003013,3]
[319591587,1710885038777,-222.032006,0.0003013,4]
[319591588,1710885038786,-222.032006,0.00030131,4]
[319591589,1710885038798,-222.032006,0.00030131,3]
[319591590,1710885038808,-400.0,0.00030132,2]
[319591591,1710885038817,-222.032006,0.00030132,3]
[319591592,1710885038826,-222.032006,0.00030132,4]
[319591593,1710885038836,-373.53070217,0.00030133,2]
[319591594,1710885038846,-931.04300314,0.00030133,2]
[319591595,1710885038856,-401.60576543,0.00030134,4]
[319591596,1710885038866,-308.18464898,0.00030134,4]
[319591597,1710885038876,-1196.93073222,0.00030134,4]
[319591598,1710885038886,-158.47187896,0.00030134,4]
[319591599,1710885038896,-162015.47010789,0.00030134,4]
[319591600,1710885038905,-2483.87174996,0.00030134,2]
[319591601,1710885038915,-155.0,0.00030134,4]
[319591602,1710885038925,-258.28116314,0.00030134,4]
[319591603,1710885038993,-483.47540217,0.00030134,2]
[319591604,1710885039003,-7503.67286878,0.00030134,4]
[319591605,1710885039015,-932.94646968,0.00030135,4]
[319591606,1710885039025,-432.53971734,0.00030135,4]
[319591607,1710885039035,-500.0,0.00030135,2]
[319591608,1710885039047,-45800.72129927,0.00030135,4]
[319591609,1710885039056,-905.92,0.00030136,2]
[319591610,1710885039066,-760.8,0.00030136,2]
[319591611,1710885039076,-500.0,0.00030136,2]
[319591612,1710885039086,-500.0,0.00030136,2]
[319591613,1710885039096,-918.16,0.00030136,2]
[319591614,1710885039105,-1354.5,0.00030136,2]
[319591615,1710885039115,-500.0,0.00030136,2]
[319591616,1710885039125,-749.84,0.00030136,2]
[319591617,1710885039135,-500.0,0.00030136,2]
[319591618,1710885039145,-500.0,0.00030136,2]
[319591619,1710885039155,-150.0,0.00030136,2]
[319591620,1710885039165,-563.69,0.00030136,2]
[319591621,1710885039175,-500.0,0.00030136,2]
[319591622,1710885039185,-553.29,0.00030136,2]
[319591623,1710885039195,-500.0,0.00030136,2]
[319591624,1710885039206,-500.0,0.00030136,2]
[319591625,1710885039215,-500.0,0.00030136,2]
[319591626,1710885039225,-500.0,0.00030136,2]
[319591627,1710885039235,-500.0,0.00030136,2]
[319591628,1710885039245,-500.0,0.00030136,2]
[319591629,1710885039255,-500.0,0.00030136,2]
[319591630,1710885039264,-576.34,0.00030136,2]
[319591631,1710885039274,-500.0,0.00030136,2]
[319591632,1710885039283,-500.0,0.00030136,2]
[319591633,1710885039294,-628.41,0.00030136,2]
[319591634,1710885039304,-500.0,0.00030136,2]
[319591635,1710885039314,-500.0,0.00030136,2]
[319591636,1710885039323,-500.0,0.00030136,2]
[319591637,1710885039333,-964.89,0.00030136,2]
[319591638,1710885039343,-620.13,0.00030136,2]
[319591640,1710885039353,-786.01,0.00030136,2]
[319591642,1710885039362,-865.28,0.00030136,2]
[319591644,1710885039372,-564.61,0.00030136,2]
[319591646,1710885039381,-500.0,0.00030136,2]
[319591648,1710885039391,-500.85894879,0.00030136,2]
[319591649,1710885039401,-500.0,0.00030136,2]
[319591650,1710885039410,-500.0,0.00030136,2]
[319591651,1710885039420,-500.0,0.00030136,2]
[319591652,1710885039430,-500.0,0.00030136,2]
[319591653,1710885039440,-500.0,0.00030136,2]